[Event "Titled Tuesday Blitz November 22 Early 2022"]
[White "Ciuffoletti, Paolo"]
[Black "Levine, David"]
[WhiteFideId "807630"]
[BlackFideId "2011611"]
[WhiteElo "2143"]
[BlackElo "2190"]
[Result "1-0"]
[Round "08"]
[TimeControl "180+1"]
[Date "2022.11.23"]
[WhiteClock "0:01:59"]
[BlackClock "0:01:29"]

1. e4 {[%clk 0:03:00]}  e5 {[%clk 0:02:58]} 2. Nf3 {[%clk 0:03:00]}  Nc6 {[%clk 0:02:58]} 3. Bc4 {[%clk 0:02:59]}  Nf6 {[%clk 0:02:57]} 4. d4 {[%clk 0:02:59]}  exd4 {[%clk 0:02:55]} 5. Ng5 {[%clk 0:02:59]}  d5 {[%clk 0:02:48]} 6. exd5 {[%clk 0:02:58]}  Qe7+ {[%clk 0:02:47]} 7. Kf1 {[%clk 0:02:53]}  Qc5 {[%clk 0:02:39]} 8. Qe2+ {[%clk 0:02:42]}  Be7 {[%clk 0:02:01]} 9. dxc6 {[%clk 0:02:29]}  O-O {[%clk 0:01:46]} 10. Bf4 {[%clk 0:02:13]}  Qxc6 {[%clk 0:01:41]} 11. Nd2 {[%clk 0:02:04]}  Bg4 {[%clk 0:01:34]} 12. Qxe7 {[%clk 0:01:59]}  Rfe8 {[%clk 0:01:29]} 1-0


[Site "https://www.chess.com"]

[Event "Titled Tuesday Blitz November 22 Early 2022"]
[White "Danielian, Vardan"]
[Black "Bilych, Olexiy"]
[WhiteFideId "13301594"]
[BlackFideId "14156504"]
[WhiteElo "2562"]
[BlackElo "2320"]
[Result "0-1"]
[Round "08"]
[TimeControl "180+1"]
[Date "2022.11.23"]
[WhiteClock "0:02:06"]
[BlackClock "0:02:14"]

1. Nf3 {[%clk 0:03:00]}  d5 {[%clk 0:02:55]} 2. d4 {[%clk 0:02:58]}  Nf6 {[%clk 0:02:54]} 3. c4 {[%clk 0:02:58]}  e6 {[%clk 0:02:54]} 4. Nc3 {[%clk 0:02:57]}  c5 {[%clk 0:02:55]} 5. cxd5 {[%clk 0:02:56]}  cxd4 {[%clk 0:02:55]} 6. Nxd4 {[%clk 0:02:49]}  Nxd5 {[%clk 0:02:54]} 7. Nxd5 {[%clk 0:02:49]}  Qxd5 {[%clk 0:02:54]} 8. e3 {[%clk 0:02:49]}  Bd7 {[%clk 0:02:53]} 9. Qb3 {[%clk 0:02:45]}  Qxb3 {[%clk 0:02:52]} 10. Nxb3 {[%clk 0:02:43]}  Ba4 {[%clk 0:02:46]} 11. Bd2 {[%clk 0:02:40]}  Nc6 {[%clk 0:02:39]} 12. Be2 {[%clk 0:02:31]}  Bb4 {[%clk 0:02:36]} 13. a3 {[%clk 0:02:11]}  Be7 {[%clk 0:02:25]} 14. Bd1 {[%clk 0:02:06]}  O-O-O {[%clk 0:02:16]} 15. Bc3 {[%clk 0:02:06]}  Rxd1+ {[%clk 0:02:14]} 0-1


[Site "https://www.chess.com"]

[Event "Titled Tuesday Blitz November 22 Early 2022"]
[White "Donskov, Anatoly"]
[Black "Lakshmi C"]
[WhiteFideId "24143413"]
[BlackFideId "25035347"]
[WhiteElo "2219"]
[BlackElo "1865"]
[Result "1-0"]
[Round "08"]
[TimeControl "180+1"]
[Date "2022.11.23"]
[WhiteClock "0:00:36"]
[BlackClock "0:00:10"]

1. e4 {[%clk 0:03:00]}  c5 {[%clk 0:02:58]} 2. Nf3 {[%clk 0:03:00]}  Nc6 {[%clk 0:02:58]} 3. Nc3 {[%clk 0:03:00]}  e5 {[%clk 0:02:57]} 4. Bc4 {[%clk 0:02:59]}  Be7 {[%clk 0:02:57]} 5. d3 {[%clk 0:02:59]}  Nf6 {[%clk 0:02:57]} 6. Nd2 {[%clk 0:03:00]}  O-O {[%clk 0:02:56]} 7. Nf1 {[%clk 0:03:00]}  Na5 {[%clk 0:02:54]} 8. Ne3 {[%clk 0:02:55]}  Nxc4 {[%clk 0:02:51]} 9. dxc4 {[%clk 0:02:56]}  d6 {[%clk 0:02:50]} 10. O-O {[%clk 0:02:56]}  Be6 {[%clk 0:02:42]} 11. b3 {[%clk 0:02:56]}  Qd7 {[%clk 0:02:38]} 12. Qd3 {[%clk 0:02:50]}  Nh5 {[%clk 0:02:07]} 13. Ncd5 {[%clk 0:02:27]}  g6 {[%clk 0:02:02]} 14. Bb2 {[%clk 0:02:24]}  Rad8 {[%clk 0:02:00]} 15. Rad1 {[%clk 0:02:09]}  f5 {[%clk 0:01:55]} 16. exf5 {[%clk 0:02:03]}  Bxf5 {[%clk 0:01:24]} 17. Nxf5 {[%clk 0:02:03]}  Rxf5 {[%clk 0:01:23]} 18. f4 {[%clk 0:01:39]}  Nxf4 {[%clk 0:01:10]} 19. Rxf4 {[%clk 0:01:18]}  exf4 {[%clk 0:01:04]} 20. Re1 {[%clk 0:01:15]}  Bh4 {[%clk 0:00:58]} 21. g3 {[%clk 0:00:48]}  f3 {[%clk 0:00:19]} 22. Kf2 {[%clk 0:00:40]}  Bg5 {[%clk 0:00:18]} 23. Qc3 {[%clk 0:00:38]}  Re5 {[%clk 0:00:17]} 24. Rxe5 {[%clk 0:00:38]}  dxe5 {[%clk 0:00:16]} 25. Qxe5 {[%clk 0:00:39]}  Qf5 {[%clk 0:00:10]} 26. Qg7# {[%clk 0:00:36]} 1-0


[Site "https://www.chess.com"]

[Event "Titled Tuesday Blitz November 22 Early 2022"]
[White "Erdogdu, Mert"]
[Black "Decuigniere, Tom"]
[WhiteFideId "6301495"]
[BlackFideId "26093820"]
[WhiteElo "2413"]
[BlackElo "2252"]
[Result "1-0"]
[Round "08"]
[TimeControl "180+1"]
[Date "2022.11.23"]
[WhiteClock "0:00:50"]
[BlackClock "0:00:02"]

1. e4 {[%clk 0:03:00]}  c5 {[%clk 0:03:00]} 2. Nf3 {[%clk 0:03:00]}  g6 {[%clk 0:03:00]} 3. d4 {[%clk 0:03:00]}  cxd4 {[%clk 0:03:01]} 4. Qxd4 {[%clk 0:03:01]}  Nf6 {[%clk 0:03:01]} 5. Nc3 {[%clk 0:03:01]}  Nc6 {[%clk 0:03:01]} 6. Qa4 {[%clk 0:03:01]}  d6 {[%clk 0:03:02]} 7. e5 {[%clk 0:03:02]}  dxe5 {[%clk 0:03:02]} 8. Nxe5 {[%clk 0:03:02]}  Bg7 {[%clk 0:03:03]} 9. Bb5 {[%clk 0:03:02]}  O-O {[%clk 0:03:04]} 10. Nxc6 {[%clk 0:03:03]}  bxc6 {[%clk 0:03:04]} 11. Bxc6 {[%clk 0:03:03]}  Rb8 {[%clk 0:03:05]} 12. O-O {[%clk 0:03:03]}  Qc7 {[%clk 0:03:00]} 13. Re1 {[%clk 0:03:02]}  Rb6 {[%clk 0:02:50]} 14. Nd5 {[%clk 0:03:02]}  Nxd5 {[%clk 0:02:43]} 15. Bxd5 {[%clk 0:03:02]}  Bf5 {[%clk 0:01:59]} 16. c3 {[%clk 0:02:54]}  Be5 {[%clk 0:01:57]} 17. Qh4 {[%clk 0:02:45]}  Rd8 {[%clk 0:01:52]} 18. Bb3 {[%clk 0:02:43]}  Bf6 {[%clk 0:01:47]} 19. Bg5 {[%clk 0:02:41]}  a5 {[%clk 0:01:30]} 20. Bxf6 {[%clk 0:02:37]}  Rxf6 {[%clk 0:01:31]} 21. Rad1 {[%clk 0:02:29]}  Rxd1 {[%clk 0:01:22]} 22. Rxd1 {[%clk 0:02:28]}  Rd6 {[%clk 0:01:22]} 23. Rxd6 {[%clk 0:02:24]}  Qxd6 {[%clk 0:01:23]} 24. Qd4 {[%clk 0:02:24]}  Qc7 {[%clk 0:01:17]} 25. f4 {[%clk 0:02:11]}  h5 {[%clk 0:01:11]} 26. Bc4 {[%clk 0:01:54]}  Qb7 {[%clk 0:01:01]} 27. b4 {[%clk 0:01:52]}  e6 {[%clk 0:00:47]} 28. b5 {[%clk 0:01:49]}  h4 {[%clk 0:00:47]} 29. h3 {[%clk 0:01:47]}  a4 {[%clk 0:00:41]} 30. Bf1 {[%clk 0:01:44]}  a3 {[%clk 0:00:35]} 31. c4 {[%clk 0:01:44]}  Bb1 {[%clk 0:00:32]} 32. Qf2 {[%clk 0:01:28]}  Qe4 {[%clk 0:00:24]} 33. c5 {[%clk 0:01:26]}  Qd5 {[%clk 0:00:24]} 34. c6 {[%clk 0:01:17]}  Bxa2 {[%clk 0:00:24]} 35. c7 {[%clk 0:01:17]}  Qd7 {[%clk 0:00:19]} 36. Qxa2 {[%clk 0:01:14]}  Qxc7 {[%clk 0:00:19]} 37. Qxa3 {[%clk 0:01:12]}  Qxf4 {[%clk 0:00:20]} 38. Qf3 {[%clk 0:01:11]}  Qd4+ {[%clk 0:00:19]} 39. Qf2 {[%clk 0:01:12]}  Qd5 {[%clk 0:00:18]} 40. Qxh4 {[%clk 0:01:11]}  e5 {[%clk 0:00:15]} 41. Qf2 {[%clk 0:01:11]}  e4 {[%clk 0:00:15]} 42. Qe3 {[%clk 0:01:08]}  f5 {[%clk 0:00:13]} 43. g3 {[%clk 0:01:08]}  Kg7 {[%clk 0:00:13]} 44. h4 {[%clk 0:01:08]}  Kf6 {[%clk 0:00:11]} 45. Qc3+ {[%clk 0:01:07]}  Ke7 {[%clk 0:00:10]} 46. b6 {[%clk 0:01:06]}  g5 {[%clk 0:00:03]} 47. hxg5 {[%clk 0:01:05]}  Kf8 {[%clk 0:00:02]} 48. g6 {[%clk 0:00:55]}  Ke8 {[%clk 0:00:01]} 49. Qc8+ {[%clk 0:00:51]}  Ke7 {[%clk 0:00:01]} 50. Qc7+ {[%clk 0:00:51]}  Kf6 {[%clk 0:00:01]} 51. Qf7+ {[%clk 0:00:51]}  Kg5 {[%clk 0:00:02]} 52. Qxd5 {[%clk 0:00:50]} 1-0


[Site "https://www.chess.com"]

[Event "Titled Tuesday Blitz November 22 Early 2022"]
[White "Fernandez Garcia, Gumersindo"]
[Black "Osmonbekov, Talaibek"]
[WhiteFideId "24516740"]
[BlackFideId "2017253"]
[WhiteElo "2140"]
[BlackElo "2135"]
[Result "1-0"]
[Round "08"]
[TimeControl "180+1"]
[Date "2022.11.23"]
[WhiteClock "0:00:50"]
[BlackClock "0:00:20"]

1. e4 {[%clk 0:03:00]}  c5 {[%clk 0:02:59]} 2. c3 {[%clk 0:02:56]}  d5 {[%clk 0:02:59]} 3. exd5 {[%clk 0:02:55]}  Qxd5 {[%clk 0:03:00]} 4. d4 {[%clk 0:02:55]}  Nf6 {[%clk 0:03:00]} 5. Nf3 {[%clk 0:02:54]}  e6 {[%clk 0:03:00]} 6. Be2 {[%clk 0:02:53]}  Nc6 {[%clk 0:02:59]} 7. O-O {[%clk 0:02:54]}  Be7 {[%clk 0:02:59]} 8. dxc5 {[%clk 0:02:41]}  Qxd1 {[%clk 0:02:53]} 9. Rxd1 {[%clk 0:02:41]}  Bxc5 {[%clk 0:02:54]} 10. Nbd2 {[%clk 0:02:36]}  O-O {[%clk 0:02:49]} 11. Nb3 {[%clk 0:02:32]}  Bb6 {[%clk 0:02:40]} 12. h3 {[%clk 0:02:27]}  e5 {[%clk 0:02:34]} 13. Bb5 {[%clk 0:02:09]}  Ne4 {[%clk 0:02:21]} 14. Be3 {[%clk 0:02:08]}  Bxe3 {[%clk 0:02:17]} 15. fxe3 {[%clk 0:02:09]}  f6 {[%clk 0:02:15]} 16. Bc4+ {[%clk 0:01:49]}  Kh8 {[%clk 0:02:13]} 17. Bd5 {[%clk 0:01:50]}  Bf5 {[%clk 0:01:58]} 18. Nh4 {[%clk 0:01:41]}  Ng3 {[%clk 0:01:57]} 19. Kh2 {[%clk 0:01:38]}  g5 {[%clk 0:01:50]} 20. Kxg3 {[%clk 0:01:31]}  gxh4+ {[%clk 0:01:49]} 21. Kxh4 {[%clk 0:01:32]}  Rad8 {[%clk 0:01:35]} 22. Nc5 {[%clk 0:01:28]}  Bc8 {[%clk 0:01:10]} 23. Be6 {[%clk 0:01:23]}  b6 {[%clk 0:01:02]} 24. Bxc8 {[%clk 0:01:21]}  Rxc8 {[%clk 0:01:02]} 25. Nd7 {[%clk 0:01:19]}  Rg8 {[%clk 0:00:58]} 26. Nxf6 {[%clk 0:01:16]}  Rxg2 {[%clk 0:00:56]} 27. Rd7 {[%clk 0:01:11]}  Rg7 {[%clk 0:00:56]} 28. Rad1 {[%clk 0:01:02]}  Rf8 {[%clk 0:00:43]} 29. Rxg7 {[%clk 0:00:51]}  Kxg7 {[%clk 0:00:43]} 30. Nh5+ {[%clk 0:00:51]}  Kg8 {[%clk 0:00:32]} 31. Rd6 {[%clk 0:00:51]}  Ne7 {[%clk 0:00:31]} 32. Rd7 {[%clk 0:00:49]}  Nf5+ {[%clk 0:00:26]} 33. Kg5 {[%clk 0:00:49]}  Nxe3 {[%clk 0:00:22]} 34. Nf6+ {[%clk 0:00:49]}  Rxf6 {[%clk 0:00:20]} 35. Kxf6 {[%clk 0:00:50]}  e4 {[%clk 0:00:20]} 36. Rd8# {[%clk 0:00:50]} 1-0


[Site "https://www.chess.com"]

[Event "Titled Tuesday Blitz November 22 Early 2022"]
[White "Fernandez Siles, Luis"]
[Black "Jiganchine, Roman"]
[WhiteFideId "2209420"]
[BlackFideId "2603667"]
[WhiteElo "2186"]
[BlackElo "2309"]
[Result "1-0"]
[Round "08"]
[TimeControl "180+1"]
[Date "2022.11.23"]
[WhiteClock "0:00:06"]
[BlackClock "0:00:04"]

1. d4 {[%clk 0:03:00]}  d5 {[%clk 0:02:59]} 2. c4 {[%clk 0:03:00]}  e6 {[%clk 0:02:58]} 3. Nc3 {[%clk 0:03:00]}  Nf6 {[%clk 0:02:58]} 4. cxd5 {[%clk 0:03:00]}  exd5 {[%clk 0:02:58]} 5. Bg5 {[%clk 0:03:00]}  c6 {[%clk 0:02:52]} 6. e3 {[%clk 0:03:00]}  Bf5 {[%clk 0:02:52]} 7. Qf3 {[%clk 0:03:00]}  Bg6 {[%clk 0:02:51]} 8. Bxf6 {[%clk 0:03:01]}  Qxf6 {[%clk 0:02:51]} 9. Qxf6 {[%clk 0:03:01]}  gxf6 {[%clk 0:02:52]} 10. Nf3 {[%clk 0:02:58]}  Nd7 {[%clk 0:02:50]} 11. Nh4 {[%clk 0:02:58]}  Nb6 {[%clk 0:02:40]} 12. f4 {[%clk 0:02:56]}  Be4 {[%clk 0:02:03]} 13. a3 {[%clk 0:02:25]}  f5 {[%clk 0:01:54]} 14. Rg1 {[%clk 0:02:10]}  Be7 {[%clk 0:01:52]} 15. Nf3 {[%clk 0:01:58]}  Nc8 {[%clk 0:01:33]} 16. Kf2 {[%clk 0:01:36]}  Nd6 {[%clk 0:01:30]} 17. g3 {[%clk 0:01:29]}  h5 {[%clk 0:01:21]} 18. Nh4 {[%clk 0:01:26]}  b5 {[%clk 0:00:49]} 19. Bh3 {[%clk 0:01:22]}  O-O {[%clk 0:00:32]} 20. b3 {[%clk 0:01:12]}  Rfd8 {[%clk 0:00:31]} 21. Nxe4 {[%clk 0:00:59]}  fxe4 {[%clk 0:00:27]} 22. Nf5 {[%clk 0:00:54]}  Nxf5 {[%clk 0:00:24]} 23. Bxf5 {[%clk 0:00:54]}  Rd6 {[%clk 0:00:22]} 24. a4 {[%clk 0:00:46]}  bxa4 {[%clk 0:00:18]} 25. Rxa4 {[%clk 0:00:42]}  Rf6 {[%clk 0:00:18]} 26. Bh3 {[%clk 0:00:34]}  c5 {[%clk 0:00:18]} 27. Rga1 {[%clk 0:00:29]}  a6 {[%clk 0:00:17]} 28. dxc5 {[%clk 0:00:21]}  Bxc5 {[%clk 0:00:16]} 29. b4 {[%clk 0:00:21]}  Ba7 {[%clk 0:00:14]} 30. b5 {[%clk 0:00:20]}  d4 {[%clk 0:00:09]} 31. exd4 {[%clk 0:00:20]}  Rd6 {[%clk 0:00:08]} 32. Ke3 {[%clk 0:00:20]}  Rad8 {[%clk 0:00:07]} 33. bxa6 {[%clk 0:00:15]}  Rxd4 {[%clk 0:00:06]} 34. Rxd4 {[%clk 0:00:12]}  Rxd4 {[%clk 0:00:07]} 35. Ke2 {[%clk 0:00:13]}  Rb4 {[%clk 0:00:06]} 36. Rc1 {[%clk 0:00:09]}  Rb2+ {[%clk 0:00:06]} 37. Kd1 {[%clk 0:00:08]}  Ra2 {[%clk 0:00:06]} 38. Bc8 {[%clk 0:00:07]}  Rxh2 {[%clk 0:00:05]} 39. Rc2 {[%clk 0:00:07]}  Rh1+ {[%clk 0:00:04]} 40. Ke2 {[%clk 0:00:07]}  Rh2+ {[%clk 0:00:04]} 41. Kd1 {[%clk 0:00:08]}  Rxc2 {[%clk 0:00:04]} 42. Kxc2 {[%clk 0:00:08]}  Kg7 {[%clk 0:00:05]} 43. Bf5 {[%clk 0:00:06]}  Kf6 {[%clk 0:00:04]} 44. Bxe4 {[%clk 0:00:06]}  Ke7 {[%clk 0:00:04]} 45. Bf3 {[%clk 0:00:06]} 1-0


[Site "https://www.chess.com"]

[Event "Titled Tuesday Blitz November 22 Early 2022"]
[White "Garcia Ramos, Daniel"]
[Black "Kvaloy, Aksel Bu"]
[WhiteFideId "32010311"]
[BlackFideId "1528815"]
[WhiteElo "2357"]
[BlackElo "2184"]
[Result "0-1"]
[Round "08"]
[TimeControl "180+1"]
[Date "2022.11.23"]
[WhiteClock "0:00:01"]
[BlackClock "0:00:58"]

1. e4 {[%clk 0:03:00]}  e5 {[%clk 0:02:57]} 2. Nf3 {[%clk 0:03:00]}  Nf6 {[%clk 0:02:57]} 3. Nxe5 {[%clk 0:02:59]}  Nc6 {[%clk 0:02:57]} 4. Nxc6 {[%clk 0:02:43]}  dxc6 {[%clk 0:02:58]} 5. d3 {[%clk 0:02:44]}  Bc5 {[%clk 0:02:44]} 6. Be2 {[%clk 0:02:44]}  h5 {[%clk 0:02:44]} 7. Be3 {[%clk 0:02:39]}  Bxe3 {[%clk 0:02:43]} 8. fxe3 {[%clk 0:02:40]}  Ng4 {[%clk 0:02:43]} 9. Bxg4 {[%clk 0:02:39]}  hxg4 {[%clk 0:02:40]} 10. Qe2 {[%clk 0:02:36]}  Be6 {[%clk 0:02:33]} 11. Nd2 {[%clk 0:02:29]}  g3 {[%clk 0:02:30]} 12. h3 {[%clk 0:02:27]}  Qf6 {[%clk 0:02:30]} 13. d4 {[%clk 0:02:24]}  O-O-O {[%clk 0:02:27]} 14. O-O-O {[%clk 0:02:06]}  c5 {[%clk 0:02:26]} 15. e5 {[%clk 0:01:43]}  Qe7 {[%clk 0:02:24]} 16. Nb3 {[%clk 0:01:38]}  c4 {[%clk 0:02:14]} 17. Nc5 {[%clk 0:01:33]}  c3 {[%clk 0:02:14]} 18. bxc3 {[%clk 0:01:27]}  Bxa2 {[%clk 0:02:13]} 19. Qb5 {[%clk 0:01:04]}  Bd5 {[%clk 0:02:12]} 20. e4 {[%clk 0:00:53]}  Bc6 {[%clk 0:02:11]} 21. Qa5 {[%clk 0:00:48]}  b6 {[%clk 0:02:09]} 22. Qa6+ {[%clk 0:00:44]}  Kb8 {[%clk 0:02:09]} 23. Rd3 {[%clk 0:00:25]}  Ba8 {[%clk 0:01:59]} 24. Qb5 {[%clk 0:00:20]}  Qe8 {[%clk 0:01:55]} 25. Qb4 {[%clk 0:00:16]}  a5 {[%clk 0:01:54]} 26. Qb3 {[%clk 0:00:15]}  Ka7 {[%clk 0:01:54]} 27. Na4 {[%clk 0:00:10]}  Bxe4 {[%clk 0:01:54]} 28. Rxg3 {[%clk 0:00:11]}  g6 {[%clk 0:01:49]} 29. Rd1 {[%clk 0:00:08]}  Qc6 {[%clk 0:01:49]} 30. c4 {[%clk 0:00:07]}  Rhe8 {[%clk 0:01:41]} 31. Nc3 {[%clk 0:00:06]}  Bf5 {[%clk 0:01:38]} 32. Nb5+ {[%clk 0:00:06]}  Kb7 {[%clk 0:01:37]} 33. d5 {[%clk 0:00:05]}  Qc5 {[%clk 0:01:38]} 34. Re3 {[%clk 0:00:05]}  a4 {[%clk 0:01:33]} 35. Qc3 {[%clk 0:00:04]}  c6 {[%clk 0:01:28]} 36. dxc6+ {[%clk 0:00:03]}  Kxc6 {[%clk 0:01:18]} 37. Rd6+ {[%clk 0:00:01]}  Rxd6 {[%clk 0:01:18]} 38. Nxd6 {[%clk 0:00:02]}  Re6 {[%clk 0:01:12]} 39. Nxf5 {[%clk 0:00:02]}  gxf5 {[%clk 0:01:13]} 40. Qd3 {[%clk 0:00:02]}  f4 {[%clk 0:01:09]} 41. Qe4+ {[%clk 0:00:02]}  Kc7 {[%clk 0:00:57]} 42. Qxf4 {[%clk 0:00:02]}  Qe7 {[%clk 0:00:57]} 43. Qd4 {[%clk 0:00:02]}  f6 {[%clk 0:00:58]} 44. Rd3 {[%clk 0:00:02]}  fxe5 {[%clk 0:00:58]} 45. Qd5 {[%clk 0:00:02]}  e4 {[%clk 0:00:58]} 46. Rg3 {[%clk 0:00:01]}  e3 {[%clk 0:00:57]} 47. Rg7 {[%clk 0:00:01]}  Qxg7 {[%clk 0:00:57]} 48. Qxe6 {[%clk 0:00:01]}  Qa1# {[%clk 0:00:58]} 0-1


[Site "https://www.chess.com"]

[Event "Titled Tuesday Blitz November 22 Early 2022"]
[White "Garv Gaur"]
[Black "Martin, Lewis"]
[WhiteFideId "45030839"]
[BlackFideId "410551"]
[WhiteElo "1960"]
[BlackElo "2145"]
[Result "1-0"]
[Round "08"]
[TimeControl "180+1"]
[Date "2022.11.23"]
[WhiteClock "0:01:32"]
[BlackClock "0:00:41"]

1. d4 {[%clk 0:03:00]}  d5 {[%clk 0:02:50]} 2. c4 {[%clk 0:03:00]}  c6 {[%clk 0:02:49]} 3. Nf3 {[%clk 0:03:00]}  Nf6 {[%clk 0:02:49]} 4. g3 {[%clk 0:02:59]}  Bf5 {[%clk 0:02:46]} 5. Nc3 {[%clk 0:02:59]}  dxc4 {[%clk 0:02:44]} 6. Bg2 {[%clk 0:02:53]}  Nbd7 {[%clk 0:02:42]} 7. O-O {[%clk 0:02:46]}  e6 {[%clk 0:02:42]} 8. Nh4 {[%clk 0:02:16]}  Bg4 {[%clk 0:02:37]} 9. h3 {[%clk 0:02:16]}  Bh5 {[%clk 0:02:36]} 10. g4 {[%clk 0:02:16]}  Nxg4 {[%clk 0:02:22]} 11. hxg4 {[%clk 0:02:15]}  Qxh4 {[%clk 0:02:22]} 12. gxh5 {[%clk 0:02:16]}  Bd6 {[%clk 0:02:16]} 13. f4 {[%clk 0:02:15]}  Qxh5 {[%clk 0:02:13]} 14. e4 {[%clk 0:02:15]}  Qxd1 {[%clk 0:02:07]} 15. Rxd1 {[%clk 0:02:14]}  O-O-O {[%clk 0:02:06]} 16. e5 {[%clk 0:02:14]}  Be7 {[%clk 0:02:04]} 17. Be3 {[%clk 0:02:14]}  h6 {[%clk 0:02:00]} 18. a4 {[%clk 0:02:13]}  Nb6 {[%clk 0:01:56]} 19. a5 {[%clk 0:02:06]}  Nd5 {[%clk 0:01:56]} 20. Nxd5 {[%clk 0:02:06]}  cxd5 {[%clk 0:01:53]} 21. b3 {[%clk 0:02:01]}  cxb3 {[%clk 0:01:49]} 22. Rdc1+ {[%clk 0:01:59]}  Kb8 {[%clk 0:01:44]} 23. Rab1 {[%clk 0:02:00]}  Rc8 {[%clk 0:01:36]} 24. Rxc8+ {[%clk 0:01:55]}  Rxc8 {[%clk 0:01:35]} 25. Rxb3 {[%clk 0:01:56]}  Rc4 {[%clk 0:01:28]} 26. Bf1 {[%clk 0:01:55]}  Rc2 {[%clk 0:01:21]} 27. Bb5 {[%clk 0:01:47]}  f6 {[%clk 0:01:03]} 28. Bd7 {[%clk 0:01:45]}  fxe5 {[%clk 0:01:03]} 29. fxe5 {[%clk 0:01:44]}  a6 {[%clk 0:00:54]} 30. Bxe6 {[%clk 0:01:43]}  Bd8 {[%clk 0:00:45]} 31. Bxd5 {[%clk 0:01:38]}  Rc7 {[%clk 0:00:45]} 32. e6 {[%clk 0:01:36]}  Re7 {[%clk 0:00:45]} 33. Bf4+ {[%clk 0:01:36]}  Kc8 {[%clk 0:00:41]} 34. Bd6 {[%clk 0:01:34]}  Re8 {[%clk 0:00:41]} 35. Bxb7# {[%clk 0:01:32]} 1-0


[Site "https://www.chess.com"]

[Event "Titled Tuesday Blitz November 22 Early 2022"]
[White "Gheorghiu, Calin"]
[Black "Aloma Vidal, Robert"]
[WhiteFideId "1200305"]
[BlackFideId "2260409"]
[WhiteElo "2225"]
[BlackElo "2435"]
[Result "0-1"]
[Round "08"]
[TimeControl "180+1"]
[Date "2022.11.23"]
[WhiteClock "0:00:02"]
[BlackClock "0:00:13"]

1. e3 {[%clk 0:02:59]}  e5 {[%clk 0:02:58]} 2. e4 {[%clk 0:02:54]}  Nf6 {[%clk 0:02:57]} 3. Nc3 {[%clk 0:02:53]}  Nc6 {[%clk 0:02:57]} 4. Nf3 {[%clk 0:02:52]}  Bb4 {[%clk 0:02:51]} 5. Nd5 {[%clk 0:02:46]}  O-O {[%clk 0:02:50]} 6. Nxb4 {[%clk 0:02:43]}  Nxb4 {[%clk 0:02:51]} 7. c3 {[%clk 0:02:28]}  Nc6 {[%clk 0:02:51]} 8. d3 {[%clk 0:02:27]}  d5 {[%clk 0:02:50]} 9. exd5 {[%clk 0:02:15]}  Qxd5 {[%clk 0:02:43]} 10. Be2 {[%clk 0:02:13]}  h6 {[%clk 0:02:40]} 11. O-O {[%clk 0:02:11]}  Bf5 {[%clk 0:02:40]} 12. Be3 {[%clk 0:02:06]}  Rad8 {[%clk 0:02:37]} 13. d4 {[%clk 0:02:05]}  Ng4 {[%clk 0:02:07]} 14. Qa4 {[%clk 0:00:38]}  e4 {[%clk 0:01:59]} 15. Nd2 {[%clk 0:00:36]}  a6 {[%clk 0:01:52]} 16. Bc4 {[%clk 0:00:30]}  Qd6 {[%clk 0:01:51]} 17. g3 {[%clk 0:00:22]}  b5 {[%clk 0:01:50]} 18. Qxa6 {[%clk 0:00:22]}  bxc4 {[%clk 0:01:49]} 19. Nxc4 {[%clk 0:00:22]}  Qg6 {[%clk 0:01:46]} 20. b4 {[%clk 0:00:17]}  Qh5 {[%clk 0:01:18]} 21. h4 {[%clk 0:00:15]}  Ne7 {[%clk 0:01:18]} 22. b5 {[%clk 0:00:09]}  Nd5 {[%clk 0:01:18]} 23. Rfe1 {[%clk 0:00:07]}  Be6 {[%clk 0:01:08]} 24. Qc6 {[%clk 0:00:05]}  Nxc3 {[%clk 0:01:02]} 25. a4 {[%clk 0:00:04]}  Bd5 {[%clk 0:00:58]} 26. Qc5 {[%clk 0:00:04]}  Qf5 {[%clk 0:00:37]} 27. a5 {[%clk 0:00:03]}  Qf3 {[%clk 0:00:32]} 28. Nd2 {[%clk 0:00:02]}  Qf6 {[%clk 0:00:19]} 29. a6 {[%clk 0:00:02]}  Nxe3 {[%clk 0:00:16]} 30. Rxe3 {[%clk 0:00:02]}  Nxb5 {[%clk 0:00:13]} 31. Qxb5 {[%clk 0:00:02]}  Rb8 {[%clk 0:00:13]} 32. Qc5 {[%clk 0:00:01]}  Rfd8 {[%clk 0:00:13]} 33. a7 {[%clk 0:00:02]}  Ra8 {[%clk 0:00:13]} 34. Nc4 {[%clk 0:00:02]}  Qe6 {[%clk 0:00:13]} 35. Ne5 {[%clk 0:00:02]}  f6 {[%clk 0:00:13]} 0-1


[Site "https://www.chess.com"]

[Event "Titled Tuesday Blitz November 22 Early 2022"]
[White "Ginzburg, Yakov"]
[Black "Izuzquiza Gonzalez, Javier"]
[WhiteFideId "4157176"]
[BlackFideId "3101029"]
[WhiteElo "2305"]
[BlackElo "2034"]
[Result "1-0"]
[Round "08"]
[TimeControl "180+1"]
[Date "2022.11.23"]
[WhiteClock "0:02:41"]
[BlackClock "0:01:55"]

1. d4 {[%clk 0:02:58]}  Nf6 {[%clk 0:02:59]} 2. c4 {[%clk 0:02:58]}  g6 {[%clk 0:02:59]} 3. Nf3 {[%clk 0:02:56]}  Bg7 {[%clk 0:02:58]} 4. Nc3 {[%clk 0:02:56]}  d5 {[%clk 0:02:59]} 5. cxd5 {[%clk 0:02:56]}  Nxd5 {[%clk 0:03:00]} 6. e4 {[%clk 0:02:56]}  Nxc3 {[%clk 0:03:00]} 7. bxc3 {[%clk 0:02:57]}  c5 {[%clk 0:03:01]} 8. Rb1 {[%clk 0:02:55]}  O-O {[%clk 0:02:56]} 9. Be2 {[%clk 0:02:54]}  cxd4 {[%clk 0:02:57]} 10. cxd4 {[%clk 0:02:54]}  Qa5+ {[%clk 0:02:57]} 11. Bd2 {[%clk 0:02:54]}  Qxa2 {[%clk 0:02:57]} 12. O-O {[%clk 0:02:54]}  Bg4 {[%clk 0:02:57]} 13. Rxb7 {[%clk 0:02:52]}  Nc6 {[%clk 0:02:45]} 14. d5 {[%clk 0:02:51]}  Rfb8 {[%clk 0:02:04]} 15. dxc6 {[%clk 0:02:50]}  Rxb7 {[%clk 0:01:54]} 16. cxb7 {[%clk 0:02:50]}  Rb8 {[%clk 0:01:55]} 17. Bf4 {[%clk 0:02:41]} 1-0


[Site "https://www.chess.com"]

[Event "Titled Tuesday Blitz November 22 Early 2022"]
[White "Goltseva, Ekaterina"]
[Black "Levitan, Caleb Levi"]
[WhiteFideId "24173770"]
[BlackFideId "14332620"]
[WhiteElo "2200"]
[BlackElo "1963"]
[Result "1-0"]
[Round "08"]
[TimeControl "180+1"]
[Date "2022.11.23"]
[WhiteClock "0:01:06"]
[BlackClock "0:00:01"]

1. d4 {[%clk 0:02:51]}  Nf6 {[%clk 0:02:58]} 2. c4 {[%clk 0:02:50]}  e6 {[%clk 0:02:58]} 3. Nc3 {[%clk 0:02:50]}  Bb4 {[%clk 0:02:55]} 4. Qc2 {[%clk 0:02:50]}  O-O {[%clk 0:02:50]} 5. Nf3 {[%clk 0:02:49]}  d5 {[%clk 0:02:48]} 6. g3 {[%clk 0:02:45]}  dxc4 {[%clk 0:02:42]} 7. Bg2 {[%clk 0:02:44]}  c5 {[%clk 0:02:42]} 8. dxc5 {[%clk 0:02:40]}  Bxc5 {[%clk 0:02:41]} 9. O-O {[%clk 0:02:39]}  a6 {[%clk 0:02:31]} 10. Bg5 {[%clk 0:02:30]}  Nbd7 {[%clk 0:02:29]} 11. Ne4 {[%clk 0:02:26]}  Be7 {[%clk 0:02:27]} 12. Qxc4 {[%clk 0:02:24]}  b5 {[%clk 0:02:10]} 13. Nxf6+ {[%clk 0:02:17]}  Bxf6 {[%clk 0:02:08]} 14. Qe4 {[%clk 0:02:09]}  Rb8 {[%clk 0:02:02]} 15. Bf4 {[%clk 0:01:58]}  Bb7 {[%clk 0:01:59]} 16. Qd3 {[%clk 0:01:57]}  Nc5 {[%clk 0:01:46]} 17. Qa3 {[%clk 0:01:51]}  Rc8 {[%clk 0:01:41]} 18. Rad1 {[%clk 0:01:50]}  Qb6 {[%clk 0:01:34]} 19. Rd6 {[%clk 0:01:43]}  Qa7 {[%clk 0:01:29]} 20. Be3 {[%clk 0:01:40]}  Be7 {[%clk 0:01:14]} 21. Rfd1 {[%clk 0:01:24]}  Bxd6 {[%clk 0:01:09]} 22. Rxd6 {[%clk 0:01:18]}  b4 {[%clk 0:00:20]} 23. Qxb4 {[%clk 0:01:12]}  Bxf3 {[%clk 0:00:16]} 24. Bxf3 {[%clk 0:01:11]}  Qc7 {[%clk 0:00:04]} 25. Rc6 {[%clk 0:01:10]}  Qd7 {[%clk 0:00:01]} 26. Rxc5 {[%clk 0:01:06]} 1-0


[Site "https://www.chess.com"]